[Event "*** SCC Grand Prix: Titled Tuesday Blitz"]
[Site "Chess.com"]
[Date "2020.07.14"]
[Round "1"]
[White "UKR_Master"]
[Black "theblitzchamp"]
[Result "0-1"]
[WhiteElo "2326"]
[BlackElo "2641"]
[TimeControl "180+1"]
[EndTime "10:02:10 PDT"]
[Termination "theblitzchamp won by resignation"]

1. e4 {[%clk 0:03:00.9]} 1... d6 {[%clk 0:02:59.7]} 2. d4 {[%clk 0:03:00.9]}
2... Nf6 {[%clk 0:02:59.9]} 3. Nc3 {[%clk 0:03:01.3]} 3... g6 {[%clk 0:03:00.5]}
4. g3 {[%clk 0:03:01.5]} 4... Bg7 {[%clk 0:03:00.6]} 5. Bg2 {[%clk 0:03:02.2]}
5... O-O {[%clk 0:02:59.5]} 6. Nge2 {[%clk 0:03:02.7]} 6... a6 {[%clk 0:03:00]}
7. a4 {[%clk 0:03:02.2]} 7... e5 {[%clk 0:02:57.8]} 8. O-O {[%clk 0:03:02]} 8...
Nc6 {[%clk 0:02:57.6]} 9. Be3 {[%clk 0:02:54]} 9... Ng4 {[%clk 0:02:44]} 10. Bg5
{[%clk 0:02:53.8]} 10... Qxg5 {[%clk 0:02:42]} 11. h3 {[%clk 0:02:32.6]} 11...
Nf6 {[%clk 0:02:24.5]} 12. f4 {[%clk 0:02:26.7]} 12... Qh5 {[%clk 0:02:22.2]}
13. d5 {[%clk 0:02:22.9]} 13... Nd4 {[%clk 0:02:14.7]} 14. Nxd4 {[%clk
0:02:21.4]} 14... exd4 {[%clk 0:02:14.4]} 15. Qxd4 {[%clk 0:02:21.9]} 15... Bxh3
{[%clk 0:02:12.9]} 16. Bf3 {[%clk 0:02:22.1]} 16... Bg4 {[%clk 0:02:12.5]} 0-1

[Event "*** SCC Grand Prix: Titled Tuesday Blitz"]
[Site "Chess.com"]
[Date "2020.07.14"]
[Round "1"]
[White "RobertoJBM"]
[Black "Iustin106"]
[Result "1-0"]
[WhiteElo "2621"]
[BlackElo "2309"]
[TimeControl "180+1"]
[EndTime "10:02:46 PDT"]
[Termination "RobertoJBM won by resignation"]

1. d4 {[%clk 0:02:58.8]} 1... Nf6 {[%clk 0:02:59.8]} 2. c4 {[%clk 0:02:58.8]}
2... d6 {[%clk 0:02:59.8]} 3. Nc3 {[%clk 0:02:58.7]} 3... e5 {[%clk 0:02:59.9]}
4. Nf3 {[%clk 0:02:58.6]} 4... Nbd7 {[%clk 0:02:59.7]} 5. e4 {[%clk 0:02:58.7]}
5... g6 {[%clk 0:02:56.4]} 6. Be2 {[%clk 0:02:58.6]} 6... Bg7 {[%clk 0:02:57]}
7. O-O {[%clk 0:02:58.9]} 7... O-O {[%clk 0:02:57.7]} 8. Re1 {[%clk 0:02:59.2]}
8... c6 {[%clk 0:02:57.5]} 9. Bf1 {[%clk 0:02:59.5]} 9... h6 {[%clk 0:02:55.8]}
10. d5 {[%clk 0:02:59.4]} 10... c5 {[%clk 0:02:55.8]} 11. a3 {[%clk 0:02:58.9]}
11... Ne8 {[%clk 0:02:53.2]} 12. b4 {[%clk 0:02:58.5]} 12... b6 {[%clk
0:02:53.2]} 13. Bb2 {[%clk 0:02:53]} 13... f5 {[%clk 0:02:52.3]} 14. Nd2 {[%clk
0:02:52.4]} 14... Ndf6 {[%clk 0:02:50.1]} 15. exf5 {[%clk 0:02:49]} 15... gxf5
{[%clk 0:02:49.8]} 16. f4 {[%clk 0:02:49.2]} 16... e4 {[%clk 0:02:37.1]} 17. Nb3
{[%clk 0:02:46.3]} 17... Nd7 {[%clk 0:02:32.8]} 18. Qd2 {[%clk 0:02:43.1]} 18...
a5 {[%clk 0:02:26]} 19. bxa5 {[%clk 0:02:42.1]} 19... bxa5 {[%clk 0:02:24.6]}
20. a4 {[%clk 0:02:41]} 20... Nc7 {[%clk 0:02:21.8]} 21. Nb5 {[%clk 0:02:40.2]}
21... Bxb2 {[%clk 0:02:13.1]} 22. Qxb2 {[%clk 0:02:39.8]} 22... Nf6 {[%clk
0:02:08.9]} 23. Qc3 {[%clk 0:02:33.8]} 23... Na6 {[%clk 0:02:07.4]} 24. Nxa5
{[%clk 0:02:30.1]} 24... Nb4 {[%clk 0:02:07.3]} 25. Nc6 {[%clk 0:02:24.7]} 25...
Nxc6 {[%clk 0:01:58.5]} 26. dxc6 {[%clk 0:02:25.6]} 1-0

[Event "*** SCC Grand Prix: Titled Tuesday Blitz"]
[Site "Chess.com"]
[Date "2020.07.14"]
[Round "1"]
[White "MrChampion_Coach"]
[Black "Boudicca64"]
[Result "1-0"]
[WhiteElo "2456"]
[BlackElo "1803"]
[TimeControl "180+1"]
[EndTime "10:03:00 PDT"]
[Termination "MrChampion_Coach won by resignation"]

1. e4 {[%clk 0:02:56.3]} 1... c5 {[%clk 0:02:58.3]} 2. Nf3 {[%clk 0:02:55.7]}
2... e6 {[%clk 0:02:56.4]} 3. g3 {[%clk 0:02:54.7]} 3... Nc6 {[%clk 0:02:54.8]}
4. Bg2 {[%clk 0:02:53.9]} 4... g6 {[%clk 0:02:55.2]} 5. d4 {[%clk 0:02:51]} 5...
cxd4 {[%clk 0:02:53]} 6. Nxd4 {[%clk 0:02:51.9]} 6... Bg7 {[%clk 0:02:52.6]} 7.
Nb5 {[%clk 0:02:30]} 7... Nge7 {[%clk 0:02:34.5]} 8. Nd6+ {[%clk 0:02:28.7]}
8... Kf8 {[%clk 0:02:33.4]} 9. O-O {[%clk 0:02:28]} 9... f5 {[%clk 0:02:19.7]}
10. Nc3 {[%clk 0:02:26.8]} 10... fxe4 {[%clk 0:02:13.8]} 11. Ncxe4 {[%clk
0:02:20.8]} 11... Qc7 {[%clk 0:02:08.9]} 12. Bf4 {[%clk 0:02:11.3]} 12... e5
{[%clk 0:02:06.6]} 13. Bg5 {[%clk 0:02:11]} 13... Nf5 {[%clk 0:02:03.6]} 14. Qd5
{[%clk 0:02:05]} 14... Nd8 {[%clk 0:01:44.5]} 15. Bxd8 {[%clk 0:02:02.2]} 1-0

[Event "*** SCC Grand Prix: Titled Tuesday Blitz"]
[Site "Chess.com"]
[Date "2020.07.14"]
[Round "1"]
[White "NotFischer"]
[Black "AttilaTurzo"]
[Result "0-1"]
[WhiteElo "2121"]
[BlackElo "2501"]
[TimeControl "180+1"]
[EndTime "10:03:03 PDT"]
[Termination "AttilaTurzo won by resignation"]

1. e4 {[%clk 0:03:00.9]} 1... c5 {[%clk 0:02:59.4]} 2. Nf3 {[%clk 0:03:00.8]}
2... d6 {[%clk 0:02:59.4]} 3. d4 {[%clk 0:03:00.5]} 3... cxd4 {[%clk 0:03:00.3]}
4. Nxd4 {[%clk 0:03:01]} 4... Nf6 {[%clk 0:03:00.3]} 5. Nc3 {[%clk 0:03:01.2]}
5... a6 {[%clk 0:03:00.9]} 6. Be2 {[%clk 0:03:00.2]} 6... e5 {[%clk 0:03:00.5]}
7. Nb3 {[%clk 0:02:59.9]} 7... Be7 {[%clk 0:03:00.7]} 8. Be3 {[%clk 0:03:00.1]}
8... Be6 {[%clk 0:03:00.5]} 9. O-O {[%clk 0:03:00.3]} 9... Nbd7 {[%clk
0:03:00.9]} 10. f4 {[%clk 0:02:49.7]} 10... exf4 {[%clk 0:02:51.5]} 11. Rxf4
{[%clk 0:02:48.9]} 11... O-O {[%clk 0:02:52.3]} 12. Qe1 {[%clk 0:02:42.5]} 12...
Ne5 {[%clk 0:02:51.3]} 13. Nd4 {[%clk 0:02:18.6]} 13... Rc8 {[%clk 0:02:49.7]}
14. Qg3 {[%clk 0:02:02.2]} 14... Ng6 {[%clk 0:02:37.9]} 15. Rf2 {[%clk
0:01:58.3]} 15... Rxc3 {[%clk 0:02:35.7]} 16. Nxe6 {[%clk 0:01:35.5]} 16... Rxe3
{[%clk 0:02:35.1]} 17. Nxd8 {[%clk 0:01:34.5]} 17... Rxg3 {[%clk 0:02:35.2]} 18.
hxg3 {[%clk 0:01:29.1]} 18... Bxd8 {[%clk 0:02:32.9]} 19. Bf3 {[%clk 0:01:17.3]}
19... Bb6 {[%clk 0:02:32]} 0-1

[Event "*** SCC Grand Prix: Titled Tuesday Blitz"]
[Site "Chess.com"]
[Date "2020.07.14"]
[Round "1"]
[White "VovenRogel"]
[Black "otrov-11"]
[Result "1-0"]
[WhiteElo "2726"]
[BlackElo "2382"]
[TimeControl "180+1"]
[EndTime "10:03:08 PDT"]
[Termination "VovenRogel won by resignation"]

1. d4 {[%clk 0:02:58.9]} 1... Nf6 {[%clk 0:02:58.1]} 2. c4 {[%clk 0:02:57.8]}
2... e6 {[%clk 0:02:58.5]} 3. Nf3 {[%clk 0:02:57.2]} 3... b6 {[%clk 0:02:57.8]}
4. a3 {[%clk 0:02:50.8]} 4... Bb7 {[%clk 0:02:55.2]} 5. Nc3 {[%clk 0:02:50.3]}
5... Be7 {[%clk 0:02:47.7]} 6. Bf4 {[%clk 0:02:47]} 6... O-O {[%clk 0:02:46.2]}
7. e3 {[%clk 0:02:46.8]} 7... d5 {[%clk 0:02:42.5]} 8. cxd5 {[%clk 0:02:35.3]}
8... exd5 {[%clk 0:02:41.4]} 9. Bd3 {[%clk 0:02:32.2]} 9... c5 {[%clk
0:02:37.1]} 10. O-O {[%clk 0:02:28.5]} 10... Nc6 {[%clk 0:02:37.2]} 11. Ne2
{[%clk 0:02:15.2]} 11... Rc8 {[%clk 0:02:34.8]} 12. Bf5 {[%clk 0:02:13.9]} 12...
Ra8 {[%clk 0:02:31.9]} 13. Ng3 {[%clk 0:02:11.4]} 13... g6 {[%clk 0:02:27.7]}
14. Bc2 {[%clk 0:02:07.9]} 14... Bd6 {[%clk 0:02:26.4]} 15. Bg5 {[%clk
0:02:05.7]} 15... Be7 {[%clk 0:02:26.3]} 16. Ba4 {[%clk 0:01:45.6]} 16... a6
{[%clk 0:02:20.8]} 17. dxc5 {[%clk 0:01:38.9]} 17... bxc5 {[%clk 0:02:20.4]} 18.
Rc1 {[%clk 0:01:36.7]} 18... Rc8 {[%clk 0:02:19.5]} 19. Bxf6 {[%clk 0:01:34]}
19... Bxf6 {[%clk 0:02:18.9]} 20. Rxc5 {[%clk 0:01:34.9]} 1-0

[Event "*** SCC Grand Prix: Titled Tuesday Blitz"]
[Site "Chess.com"]
[Date "2020.07.14"]
[Round "1"]
[White "KyrgyzFighter"]
[Black "Carnivoras"]
[Result "0-1"]
[WhiteElo "2292"]
[BlackElo "2598"]
[TimeControl "180+1"]
[EndTime "10:03:26 PDT"]
[Termination "Carnivoras won by resignation"]

1. c4 {[%clk 0:03:00.9]} 1... Nf6 {[%clk 0:02:59.4]} 2. Nc3 {[%clk 0:03:00.8]}
2... g6 {[%clk 0:02:59.5]} 3. e4 {[%clk 0:03:00.9]} 3... d6 {[%clk 0:02:57.2]}
4. d4 {[%clk 0:03:00.9]} 4... Bg7 {[%clk 0:02:57.3]} 5. f3 {[%clk 0:02:59.7]}
5... O-O {[%clk 0:02:50.8]} 6. Be3 {[%clk 0:02:59.8]} 6... Nc6 {[%clk
0:02:49.7]} 7. Qd2 {[%clk 0:02:59.4]} 7... e5 {[%clk 0:02:49.1]} 8. d5 {[%clk
0:02:57.7]} 8... Nd4 {[%clk 0:02:49.8]} 9. Nge2 {[%clk 0:02:57.3]} 9... c5
{[%clk 0:02:49.6]} 10. dxc6 {[%clk 0:02:54.2]} 10... Nxc6 {[%clk 0:02:46.1]} 11.
O-O-O {[%clk 0:02:52.7]} 11... Be6 {[%clk 0:02:45.1]} 12. Ng3 {[%clk 0:02:47.9]}
12... Nd4 {[%clk 0:02:44.6]} 13. Bxd4 {[%clk 0:02:41.9]} 13... exd4 {[%clk
0:02:44.8]} 14. Qxd4 {[%clk 0:02:41.9]} 14... Nd5 {[%clk 0:02:42.4]} 15. Qd2
{[%clk 0:02:30.3]} 15... Nxc3 {[%clk 0:02:41]} 16. bxc3 {[%clk 0:02:31.2]} 16...
Qa5 {[%clk 0:02:40.3]} 17. h4 {[%clk 0:02:11.9]} 17... Rfc8 {[%clk 0:02:38.8]}
18. h5 {[%clk 0:02:09.5]} 18... Bxc3 {[%clk 0:02:34]} 19. Qc2 {[%clk 0:02:07.1]}
19... Qa3+ {[%clk 0:02:28.6]} 20. Kb1 {[%clk 0:02:06.8]} 20... Rc6 {[%clk
0:02:29]} 21. Qc1 {[%clk 0:01:23.1]} 21... Rb6+ {[%clk 0:02:22.8]} 22. Kc2
{[%clk 0:01:22.6]} 22... Rb2+ {[%clk 0:02:22.7]} 23. Kd3 {[%clk 0:01:21.6]}
23... Bf6+ {[%clk 0:02:21]} 0-1

[Event "*** SCC Grand Prix: Titled Tuesday Blitz"]
[Site "Chess.com"]
[Date "2020.07.14"]
[Round "1"]
[White "gena217"]
[Black "TokChess"]
[Result "1-0"]
[WhiteElo "2924"]
[BlackElo "2434"]
[TimeControl "180+1"]
[EndTime "10:03:30 PDT"]
[Termination "gena217 won by resignation"]

1. e4 {[%clk 0:03:00.9]} 1... c5 {[%clk 0:02:59.9]} 2. Nf3 {[%clk 0:03:00.2]}
2... d6 {[%clk 0:02:59]} 3. h3 {[%clk 0:02:58.6]} 3... Nf6 {[%clk 0:02:58.5]} 4.
c3 {[%clk 0:02:59.1]} 4... e5 {[%clk 0:02:53.5]} 5. Bd3 {[%clk 0:02:59.3]} 5...
Be7 {[%clk 0:02:52.3]} 6. Bc2 {[%clk 0:02:59.9]} 6... O-O {[%clk 0:02:52.6]} 7.
O-O {[%clk 0:03:00.5]} 7... Nc6 {[%clk 0:02:51.4]} 8. d4 {[%clk 0:03:00.5]} 8...
Qc7 {[%clk 0:02:45.2]} 9. d5 {[%clk 0:02:58.7]} 9... Nb8 {[%clk 0:02:43.8]} 10.
b4 {[%clk 0:02:58.1]} 10... Nbd7 {[%clk 0:02:43.8]} 11. Be3 {[%clk 0:02:56.7]}
11... b6 {[%clk 0:02:43.8]} 12. a4 {[%clk 0:02:54.6]} 12... Ba6 {[%clk
0:02:30.9]} 13. Bd3 {[%clk 0:02:49.1]} 13... Bxd3 {[%clk 0:02:27]} 14. Qxd3
{[%clk 0:02:50]} 14... Rfc8 {[%clk 0:02:25.9]} 15. Na3 {[%clk 0:02:41]} 15...
cxb4 {[%clk 0:02:19.3]} 16. cxb4 {[%clk 0:02:41.9]} 16... Qc3 {[%clk 0:02:19.3]}
17. Qb1 {[%clk 0:02:38.5]} 17... a5 {[%clk 0:02:04.3]} 18. bxa5 {[%clk
0:02:08.6]} 18... bxa5 {[%clk 0:02:04]} 19. Nd2 {[%clk 0:01:38.3]} 19... Rab8
{[%clk 0:02:03.9]} 20. Nb5 {[%clk 0:01:36.7]} 20... Nc5 {[%clk 0:01:51.1]} 21.
Nxc3 {[%clk 0:01:35.9]} 1-0

[Event "*** SCC Grand Prix: Titled Tuesday Blitz"]
[Site "Chess.com"]
[Date "2020.07.14"]
[Round "1"]
[White "KazakhFighter04"]
[Black "margarita_2703"]
[Result "1-0"]
[WhiteElo "2737"]
[BlackElo "2389"]
[TimeControl "180+1"]
[EndTime "10:03:35 PDT"]
[Termination "KazakhFighter04 won by resignation"]

1. e4 {[%clk 0:02:57.4]} 1... Nf6 {[%clk 0:02:58.8]} 2. e5 {[%clk 0:02:54.4]}
2... Nd5 {[%clk 0:02:57.9]} 3. d4 {[%clk 0:02:54.4]} 3... d6 {[%clk 0:02:56.3]}
4. Nf3 {[%clk 0:02:55.3]} 4... g6 {[%clk 0:02:55.2]} 5. Bc4 {[%clk 0:02:52.1]}
5... Nb6 {[%clk 0:02:54.7]} 6. Bb3 {[%clk 0:02:52.1]} 6... Bg7 {[%clk
0:02:54.6]} 7. O-O {[%clk 0:02:52.3]} 7... O-O {[%clk 0:02:54.5]} 8. h3 {[%clk
0:02:52]} 8... c5 {[%clk 0:02:47]} 9. dxc5 {[%clk 0:02:48]} 9... dxc5 {[%clk
0:02:45.9]} 10. Nbd2 {[%clk 0:02:42.2]} 10... Nc6 {[%clk 0:02:37]} 11. Qe2
{[%clk 0:02:42]} 11... Nd4 {[%clk 0:02:21.8]} 12. Nxd4 {[%clk 0:02:41.5]} 12...
Qxd4 {[%clk 0:02:20.7]} 13. Nf3 {[%clk 0:02:40.6]} 13... Qd8 {[%clk 0:02:06]}
14. e6 {[%clk 0:02:39]} 14... f6 {[%clk 0:01:57.8]} 15. c3 {[%clk 0:02:37.6]}
15... Qc7 {[%clk 0:01:55.9]} 16. Nd2 {[%clk 0:02:26]} 16... Rd8 {[%clk
0:01:49.3]} 17. a4 {[%clk 0:02:25.6]} 17... a5 {[%clk 0:01:45.2]} 18. Re1 {[%clk
0:02:19.5]} 18... Rd6 {[%clk 0:01:40.9]} 19. Nc4 {[%clk 0:02:15.8]} 19... Nxc4
{[%clk 0:01:22.6]} 20. Bxc4 {[%clk 0:02:12.7]} 20... b6 {[%clk 0:01:22.1]} 21.
Bf4 {[%clk 0:02:11.9]} 21... Ba6 {[%clk 0:01:21.1]} 22. Bxa6 {[%clk 0:02:08.9]}
22... Rxa6 {[%clk 0:01:20.4]} 23. Qxa6 {[%clk 0:02:09.8]} 1-0

[Event "*** SCC Grand Prix: Titled Tuesday Blitz"]
[Site "Chess.com"]
[Date "2020.07.14"]
[Round "1"]
[White "CzechmVIII"]
[Black "regular_legs"]
[Result "0-1"]
[WhiteElo "2180"]
[BlackElo "2518"]
[TimeControl "180+1"]
[EndTime "10:03:36 PDT"]
[Termination "regular_legs won by resignation"]

1. e4 {[%clk 0:03:00]} 1... c6 {[%clk 0:02:59.6]} 2. d4 {[%clk 0:02:59.3]} 2...
d5 {[%clk 0:03:00.5]} 3. e5 {[%clk 0:02:59.7]} 3... Bf5 {[%clk 0:03:00.2]} 4.
Nc3 {[%clk 0:02:59.8]} 4... Qc8 {[%clk 0:02:59]} 5. Nf3 {[%clk 0:02:51.6]} 5...
e6 {[%clk 0:02:58.8]} 6. Be2 {[%clk 0:02:51.1]} 6... c5 {[%clk 0:02:56.2]} 7.
O-O {[%clk 0:02:46.4]} 7... Nc6 {[%clk 0:02:56]} 8. Nb5 {[%clk 0:02:36.3]} 8...
a6 {[%clk 0:02:44.6]} 9. Na3 {[%clk 0:02:36.3]} 9... cxd4 {[%clk 0:02:43.3]} 10.
Nxd4 {[%clk 0:02:33.7]} 10... Nxd4 {[%clk 0:02:34.2]} 11. Qxd4 {[%clk
0:02:32.8]} 11... Ne7 {[%clk 0:02:32]} 12. Bf4 {[%clk 0:02:24.5]} 12... Nc6
{[%clk 0:02:31.5]} 13. Qd2 {[%clk 0:02:24.6]} 13... Bxa3 {[%clk 0:02:19.4]} 14.
bxa3 {[%clk 0:02:24.1]} 14... O-O {[%clk 0:02:20.3]} 15. c4 {[%clk 0:02:22.3]}
15... Rd8 {[%clk 0:02:16.9]} 16. cxd5 {[%clk 0:02:22]} 16... Rxd5 {[%clk
0:02:17]} 17. Qe3 {[%clk 0:02:22.2]} 17... Qd7 {[%clk 0:02:12.4]} 18. Rfd1
{[%clk 0:02:15.4]} 18... Rd8 {[%clk 0:02:07.6]} 19. Rxd5 {[%clk 0:02:15.4]}
19... Qxd5 {[%clk 0:02:08.5]} 20. Bf3 {[%clk 0:02:15.4]} 20... Qd4 {[%clk
0:01:55.3]} 21. Bxc6 {[%clk 0:02:00.2]} 21... Qxa1+ {[%clk 0:01:25.4]} 22. Qc1
{[%clk 0:01:56.5]} 22... Rd1+ {[%clk 0:01:24.1]} 0-1

[Event "*** SCC Grand Prix: Titled Tuesday Blitz"]
[Site "Chess.com"]
[Date "2020.07.14"]
[Round "1"]
[White "Indianlad"]
[Black "Superfelix"]
[Result "1-0"]
[WhiteElo "2942"]
[BlackElo "2437"]
[TimeControl "180+1"]
[EndTime "10:03:41 PDT"]
[Termination "Indianlad won by resignation"]

1. e4 {[%clk 0:03:00.9]} 1... c6 {[%clk 0:02:59.4]} 2. d4 {[%clk 0:03:00.4]}
2... g6 {[%clk 0:03:00.3]} 3. Nc3 {[%clk 0:03:00.3]} 3... d5 {[%clk 0:03:00.8]}
4. Nf3 {[%clk 0:03:00.6]} 4... dxe4 {[%clk 0:03:01]} 5. Nxe4 {[%clk 0:03:00.7]}
5... Nf6 {[%clk 0:03:01.6]} 6. Bd3 {[%clk 0:02:53.4]} 6... Bg7 {[%clk
0:03:01.3]} 7. O-O {[%clk 0:02:53.3]} 7... O-O {[%clk 0:03:01.2]} 8. h3 {[%clk
0:02:53.9]} 8... Nbd7 {[%clk 0:02:58]} 9. Re1 {[%clk 0:02:54.1]} 9... a5 {[%clk
0:02:55.5]} 10. a4 {[%clk 0:02:45.7]} 10... Nxe4 {[%clk 0:02:50.5]} 11. Bxe4
{[%clk 0:02:46.2]} 11... Nf6 {[%clk 0:02:50.9]} 12. Bd3 {[%clk 0:02:46.8]} 12...
Nd5 {[%clk 0:02:49.9]} 13. c3 {[%clk 0:02:46.5]} 13... Qd6 {[%clk 0:02:43.4]}
14. Bg5 {[%clk 0:02:44.8]} 14... e6 {[%clk 0:02:38.5]} 15. Qd2 {[%clk
0:02:44.1]} 15... c5 {[%clk 0:02:33.6]} 16. dxc5 {[%clk 0:02:26.5]} 16... Qxc5
{[%clk 0:02:34.5]} 17. Bh6 {[%clk 0:02:27.1]} 17... Rd8 {[%clk 0:02:22.8]} 18.
Bxg7 {[%clk 0:02:27.3]} 18... Kxg7 {[%clk 0:02:23.4]} 19. Qg5 {[%clk 0:02:27.7]}
19... Qe7 {[%clk 0:02:18.7]} 20. Qg3 {[%clk 0:02:18.9]} 20... Nxc3 {[%clk
0:02:06.9]} 21. Bxg6 {[%clk 0:02:17.3]} 21... hxg6 {[%clk 0:02:05.2]} 22. bxc3
{[%clk 0:02:17.5]} 22... b6 {[%clk 0:02:01.3]} 23. Rab1 {[%clk 0:02:10]} 23...
Qd6 {[%clk 0:01:59.3]} 24. Ne5 {[%clk 0:02:07.1]} 24... Bb7 {[%clk 0:01:54.3]}
25. h4 {[%clk 0:02:07.6]} 25... Rh8 {[%clk 0:01:38]} 26. Rbd1 {[%clk 0:02:07.9]}
26... Bd5 {[%clk 0:01:28.1]} 27. c4 {[%clk 0:02:07]} 1-0

[Event "*** SCC Grand Prix: Titled Tuesday Blitz"]
[Site "Chess.com"]
[Date "2020.07.14"]
[Round "1"]
[White "TimKett"]
[Black "grunbergmihai"]
[Result "0-1"]
[WhiteElo "2130"]
[BlackElo "2505"]
[TimeControl "180+1"]
[EndTime "10:03:48 PDT"]
[Termination "grunbergmihai won by resignation"]

1. e4 {[%clk 0:03:00.4]} 1... c5 {[%clk 0:02:59.8]} 2. Nf3 {[%clk 0:02:59.1]}
2... e6 {[%clk 0:03:00.7]} 3. d4 {[%clk 0:02:58.4]} 3... cxd4 {[%clk 0:03:01.6]}
4. Nxd4 {[%clk 0:02:58.3]} 4... a6 {[%clk 0:03:01.6]} 5. Nc3 {[%clk 0:02:58.2]}
5... Nc6 {[%clk 0:03:01.5]} 6. Nxc6 {[%clk 0:02:55]} 6... bxc6 {[%clk
0:03:00.9]} 7. Bd3 {[%clk 0:02:55.4]} 7... d5 {[%clk 0:03:00.5]} 8. O-O {[%clk
0:02:54.8]} 8... Qc7 {[%clk 0:02:54.5]} 9. b3 {[%clk 0:02:52.8]} 9... Nf6 {[%clk
0:02:51.6]} 10. Bb2 {[%clk 0:02:51.4]} 10... Bd6 {[%clk 0:02:47.9]} 11. g3
{[%clk 0:02:44.3]} 11... O-O {[%clk 0:02:47]} 12. f4 {[%clk 0:02:38.4]} 12...
Bc5+ {[%clk 0:02:36]} 13. Kh1 {[%clk 0:02:36.9]} 13... Bb7 {[%clk 0:02:32]} 14.
e5 {[%clk 0:02:33.9]} 14... Ne8 {[%clk 0:02:29.6]} 15. Qh5 {[%clk 0:02:31.8]}
15... g6 {[%clk 0:02:29.2]} 16. Qh6 {[%clk 0:02:30.5]} 16... Ng7 {[%clk
0:02:26.8]} 17. Rae1 {[%clk 0:02:27]} 17... Rfd8 {[%clk 0:02:23.3]} 18. Nd1
{[%clk 0:02:11.6]} 18... Bf8 {[%clk 0:02:19]} 19. Qh3 {[%clk 0:02:04.7]} 19...
c5 {[%clk 0:02:18.5]} 20. Nf2 {[%clk 0:01:47.2]} 20... c4 {[%clk 0:02:17.9]} 21.
bxc4 {[%clk 0:01:45.2]} 21... dxc4+ {[%clk 0:02:17.6]} 22. Be4 {[%clk
0:01:45.3]} 22... Rd2 {[%clk 0:02:15.4]} 23. Bc3 {[%clk 0:01:31.3]} 23... Rxc2
{[%clk 0:02:11.6]} 24. Rc1 {[%clk 0:01:23.2]} 24... Rxf2 {[%clk 0:02:06]} 25.
Rxf2 {[%clk 0:01:19]} 25... Bxe4+ {[%clk 0:02:05]} 26. Kg1 {[%clk 0:01:19.5]}
26... Bc5 {[%clk 0:02:04.5]} 0-1

[Event "*** SCC Grand Prix: Titled Tuesday Blitz"]
[Site "Chess.com"]
[Date "2020.07.14"]
[Round "1"]
[White "SamuelGhimpu2003"]
[Black "FM_VS99"]
[Result "1-0"]
[WhiteElo "2602"]
[BlackElo "2295"]
[TimeControl "180+1"]
[EndTime "10:03:54 PDT"]
[Termination "SamuelGhimpu2003 won by resignation"]

1. e4 {[%clk 0:03:00.9]} 1... g6 {[%clk 0:02:59.8]} 2. d4 {[%clk 0:02:59.8]}
2... Bg7 {[%clk 0:03:00.4]} 3. Nc3 {[%clk 0:03:00.7]} 3... d6 {[%clk 0:03:01]}
4. f4 {[%clk 0:03:00.4]} 4... a6 {[%clk 0:03:01.3]} 5. Nf3 {[%clk 0:02:58.7]}
5... b5 {[%clk 0:03:01.8]} 6. Bd3 {[%clk 0:02:59.6]} 6... Nd7 {[%clk 0:03:02.2]}
7. O-O {[%clk 0:02:58.2]} 7... c5 {[%clk 0:03:02.7]} 8. d5 {[%clk 0:02:58.3]}
8... Bb7 {[%clk 0:02:59.1]} 9. a4 {[%clk 0:02:58.1]} 9... c4 {[%clk 0:02:55]}
10. Be2 {[%clk 0:02:57.1]} 10... Ngf6 {[%clk 0:02:55.6]} 11. axb5 {[%clk
0:02:49.4]} 11... axb5 {[%clk 0:02:54.6]} 12. Rxa8 {[%clk 0:02:50.3]} 12... Bxa8
{[%clk 0:02:53.2]} 13. e5 {[%clk 0:02:49.3]} 13... dxe5 {[%clk 0:02:48.1]} 14.
fxe5 {[%clk 0:02:50.2]} 14... Qb6+ {[%clk 0:02:47.6]} 15. Kh1 {[%clk 0:02:49.8]}
15... Ng4 {[%clk 0:02:48.1]} 16. e6 {[%clk 0:02:39.1]} 16... fxe6 {[%clk
0:02:33.7]} 17. dxe6 {[%clk 0:02:40]} 17... Ndf6 {[%clk 0:02:28.8]} 18. Qd4
{[%clk 0:02:11.9]} 18... Qxe6 {[%clk 0:02:19.9]} 19. Ng5 {[%clk 0:02:08.5]}
19... Qc6 {[%clk 0:01:57.9]} 20. Bf3 {[%clk 0:02:05.7]} 20... Qc8 {[%clk
0:01:53.6]} 21. Bxa8 {[%clk 0:01:52.1]} 21... Qxa8 {[%clk 0:01:52.6]} 22. Ne6
{[%clk 0:01:52.7]} 22... Kf7 {[%clk 0:01:36.7]} 23. Qxg4 {[%clk 0:01:49.3]}
23... h6 {[%clk 0:01:30.1]} 24. Nxg7 {[%clk 0:01:42.4]} 1-0

[Event "*** SCC Grand Prix: Titled Tuesday Blitz"]
[Site "Chess.com"]
[Date "2020.07.14"]
[Round "1"]
[White "Brave_spirit12"]
[Black "Larina_Marija"]
[Result "1-0"]
[WhiteElo "2494"]
[BlackElo "2115"]
[TimeControl "180+1"]
[EndTime "10:03:57 PDT"]
[Termination "Brave_spirit12 won by resignation"]

1. e4 {[%clk 0:03:00.1]} 1... d5 {[%clk 0:02:59.6]} 2. exd5 {[%clk 0:03:01]}
2... Qxd5 {[%clk 0:03:00.5]} 3. Nc3 {[%clk 0:03:00.6]} 3... Qa5 {[%clk 0:03:01]}
4. d4 {[%clk 0:03:00.8]} 4... Nf6 {[%clk 0:03:01.2]} 5. Nf3 {[%clk 0:03:01]}
5... Bf5 {[%clk 0:03:00.5]} 6. Bc4 {[%clk 0:02:59.5]} 6... e6 {[%clk 0:03:00.4]}
7. Bd2 {[%clk 0:02:58]} 7... c6 {[%clk 0:02:55]} 8. Nd5 {[%clk 0:02:57.7]} 8...
Qd8 {[%clk 0:02:54.6]} 9. Nxf6+ {[%clk 0:02:56.8]} 9... Qxf6 {[%clk 0:02:54.7]}
10. Qe2 {[%clk 0:02:57.7]} 10... Be7 {[%clk 0:02:53.1]} 11. Bg5 {[%clk
0:02:55.9]} 11... Qg6 {[%clk 0:02:51.4]} 12. Bxe7 {[%clk 0:02:55.5]} 12... Kxe7
{[%clk 0:02:52.3]} 13. O-O-O {[%clk 0:02:53.7]} 13... Rd8 {[%clk 0:02:48.1]} 14.
h3 {[%clk 0:02:48.6]} 14... Be4 {[%clk 0:02:38.6]} 15. Ne5 {[%clk 0:02:47.6]}
15... Qh6+ {[%clk 0:02:35.6]} 16. Kb1 {[%clk 0:02:47.1]} 16... Bxg2 {[%clk
0:02:30.1]} 17. Rhg1 {[%clk 0:02:44.6]} 17... Bd5 {[%clk 0:02:29.5]} 18. Bxd5
{[%clk 0:02:38.5]} 18... cxd5 {[%clk 0:02:24.4]} 19. Qb5 {[%clk 0:02:21.2]}
19... Nd7 {[%clk 0:02:15.7]} 20. Qxb7 {[%clk 0:02:18.4]} 20... Ke8 {[%clk
0:02:00.9]} 21. Nxd7 {[%clk 0:02:16.4]} 21... Rxd7 {[%clk 0:01:54]} 22. Qxa8+
{[%clk 0:02:15]} 22... Rd8 {[%clk 0:01:54.4]} 23. Qc6+ {[%clk 0:02:14.6]} 23...
Kf8 {[%clk 0:01:54.8]} 24. Rd3 {[%clk 0:02:12.5]} 24... Qf4 {[%clk 0:01:53]} 25.
Qc5+ {[%clk 0:02:08.7]} 25... Kg8 {[%clk 0:01:52.4]} 26. Qe7 {[%clk 0:02:03.8]}
26... Rc8 {[%clk 0:01:46.9]} 27. Rc3 {[%clk 0:02:03.1]} 27... Rb8 {[%clk
0:01:45.8]} 28. Qc7 {[%clk 0:01:59.1]} 28... Qxc7 {[%clk 0:01:42.8]} 29. Rxc7
{[%clk 0:02:00]} 29... a5 {[%clk 0:01:43.5]} 30. Ra7 {[%clk 0:01:59.3]} 30... h6
{[%clk 0:01:42.3]} 31. Rxa5 {[%clk 0:01:58.5]} 31... Rb4 {[%clk 0:01:43.2]} 32.
c3 {[%clk 0:01:56.8]} 32... Rb7 {[%clk 0:01:43.8]} 33. Ra8+ {[%clk 0:01:56.7]}
33... Kh7 {[%clk 0:01:43.4]} 34. a4 {[%clk 0:01:57.6]} 1-0